[Event "MČR v bleskovém šachu družstev 2019"]
[Site "Teplice, Czech Republic"]
[Date "2019.09.14"]
[Round "6.13"]
[White "Bach, Markus"]
[Black "Jirovsky, Milos"]
[Result "0-1"]
[TimeControl "3 mim. + 2 s"]
[BlackTitle "GM"]
[WhiteFideId "24603376"]
[BlackFideId "303224"]
[WhiteElo "2259"]
[BlackElo "2499"]

1. d4 {[%clk 00:03:02]} d5 {[%clk 00:03:04]} 2. Bg5 {[%clk 00:03:03]} {[%emt
00:00:02]} f6 {[%clk 00:03:05]} {[%emt 00:00:01]} 3. Bf4 {[%clk 00:03:02]}
{[%emt 00:00:03]} Nc6 {[%clk 00:03:06]} {[%emt 00:00:01]} 4. Nf3 {[%clk
00:02:58]} {[%emt 00:00:06]} Bg4 {[%clk 00:03:07]} {[%emt 00:00:01]} 5. Nbd2
{[%clk 00:02:50]} {[%emt 00:00:09]} Nxd4 {[%clk 00:03:07]} {[%emt 00:00:03]} 6.
Nxd4 {[%clk 00:02:49]} {[%emt 00:00:03]} e5 {[%clk 00:03:08]} 7. h3 {[%clk
00:02:28]} {[%emt 00:00:24]} Bc8 {[%clk 00:03:09]} {[%emt 00:00:01]} 8. Be3
{[%clk 00:02:11]} {[%emt 00:00:19]} exd4 {[%clk 00:03:09]} {[%emt 00:00:02]} 9.
Bxd4 {[%clk 00:02:12]} Bd6 {[%clk 00:02:40]} {[%emt 00:00:31]} 10. Nf3 {[%clk
00:02:05]} {[%emt 00:00:09]} Ne7 {[%clk 00:02:40]} {[%emt 00:00:02]} 11. e3
{[%clk 00:02:05]} {[%emt 00:00:02]} O-O {[%clk 00:02:36]} {[%emt 00:00:07]} 12.
Be2 {[%clk 00:01:58]} {[%emt 00:00:09]} Be6 {[%clk 00:02:33]} {[%emt 00:00:04]}
13. O-O {[%clk 00:01:57]} {[%emt 00:00:03]} Qd7 {[%clk 00:02:29]} {[%emt
00:00:07]} 14. Nh2 {[%clk 00:01:18]} {[%emt 00:00:41]} Rad8 {[%clk 00:01:38]}
{[%emt 00:00:52]} 15. b3 {[%clk 00:01:17]} {[%emt 00:00:03]} c5 {[%clk
00:01:29]} {[%emt 00:00:11]} 16. Bb2 {[%clk 00:01:18]} Be5 {[%clk 00:01:30]}
{[%emt 00:00:01]} 17. Qc1 {[%clk 00:01:11]} {[%emt 00:00:10]} Nc6 {[%clk
00:01:25]} {[%emt 00:00:06]} 18. Rd1 {[%clk 00:01:11]} {[%emt 00:00:02]} Qf7
{[%clk 00:01:22]} {[%emt 00:00:05]} 19. Ng4 {[%clk 00:01:08]} {[%emt 00:00:05]}
Bb8 {[%clk 00:01:21]} {[%emt 00:00:03]} 20. c4 {[%clk 00:01:08]} {[%emt
00:00:02]} d4 {[%clk 00:01:10]} {[%emt 00:00:13]} 21. exd4 {[%clk 00:01:06]}
{[%emt 00:00:04]} Nxd4 {[%clk 00:01:08]} {[%emt 00:00:04]} 22. Bxd4 {[%clk
00:01:00]} {[%emt 00:00:08]} cxd4 {[%clk 00:01:08]} {[%emt 00:00:02]} 23. Bf3
{[%clk 00:01:01]} {[%emt 00:00:01]} Qc7 {[%clk 00:01:02]} {[%emt 00:00:08]} 24.
g3 {[%clk 00:00:47]} {[%emt 00:00:16]} Bf5 {[%clk 00:00:55]} {[%emt 00:00:09]}
25. Qd2 {[%clk 00:00:47]} {[%emt 00:00:02]} Be6 {[%clk 00:00:45]} {[%emt
00:00:12]} 26. Kg2 {[%clk 00:00:48]} Qd7 {[%clk 00:00:43]} {[%emt 00:00:04]} 27.
Rh1 {[%clk 00:00:37]} {[%emt 00:00:13]} h5 {[%clk 00:00:41]} {[%emt 00:00:03]}
28. Nxf6+ gxf6 {[%clk 00:00:42]} 29. Qh6 {[%clk 00:00:36]} Qg7 {[%clk
00:00:39]} {[%emt 00:00:04]} 30. Qxh5 {[%clk 00:00:34]} {[%emt 00:00:04]} Be5
{[%clk 00:00:38]} {[%emt 00:00:03]} 31. Rae1 {[%clk 00:00:34]} {[%emt
00:00:02]} d3 {[%clk 00:00:37]} {[%emt 00:00:03]} 32. Be4 {[%clk 00:00:35]} d2
{[%clk 00:00:36]} {[%emt 00:00:03]} 33. Rd1 {[%clk 00:00:36]} f5 {[%clk
00:00:30]} {[%emt 00:00:09]} 34. Bxb7 {[%clk 00:00:33]} {[%emt 00:00:06]} Qxb7+
{[%clk 00:03:02]} {[%emt 00:00:01]} 35. Qg6+ 0-1

[Event "MČR v bleskovém šachu družstev 2019"]
[Site "Teplice, Czech Republic"]
[Date "2019.09.14"]
[Round "6.15"]
[White "Tresnak, Filip"]
[Black "Dolezal, Radoslav"]
[Result "0-1"]
[TimeControl "3 mim. + 2 s"]
[BlackTitle "IM"]
[WhiteFideId "333905"]
[BlackFideId "304735"]
[WhiteElo "1931"]
[BlackElo "2359"]

1. e4 {[%emt 00:13:59]} c6 {[%emt 00:00:02]} 2. d4 {[%emt 00:00:02]} d5 3. Nc3
{[%emt 00:00:02]} dxe4 4. Nxe4 Nd7 {[%emt 00:00:01]} 5. Nf3 {[%emt 00:00:05]}
Ngf6 {[%emt 00:00:02]} 6. Ng3 {[%emt 00:00:03]} g6 {[%emt 00:00:03]} 7. Bd3
{[%emt 00:00:02]} Bg7 8. O-O {[%emt 00:00:02]} O-O {[%emt 00:00:03]} 9. Re1
{[%emt 00:00:06]} b6 {[%emt 00:00:17]} 10. c3 {[%emt 00:00:03]} c5 {[%emt
00:00:13]} 11. Qe2 {[%emt 00:00:16]} e6 {[%emt 00:00:07]} 12. Ne5 {[%emt
00:00:17]} Bb7 {[%emt 00:00:37]} 13. b3 {[%emt 00:00:17]} Nd5 {[%emt 00:00:25]}
14. Bd2 {[%emt 00:00:01]} cxd4 {[%emt 00:00:10]} 15. cxd4 {[%emt 00:00:01]} Rc8
{[%emt 00:00:02]} 16. Rac1 {[%emt 00:00:13]} Nxe5 {[%emt 00:00:10]} 17. dxe5
{[%emt 00:00:02]} Qe7 {[%emt 00:00:13]} 18. f4 {[%emt 00:00:26]} Qa3 {[%emt
00:00:26]} 19. Bb1 {[%emt 00:00:16]} Qb2 {[%emt 00:00:17]} 20. Bc3 {[%emt
00:00:36]} Qxe2 {[%emt 00:00:12]} 21. Nxe2 Ba6 {[%emt 00:00:09]} 22. Bd2 {[%emt
00:00:14]} Rxc1 {[%emt 00:00:05]} 23. Bxc1 {[%emt 00:00:14]} Rc8 {[%emt
00:00:01]} 24. Nd4 {[%emt 00:00:04]} Bf8 {[%emt 00:00:05]} 25. Kh1 {[%emt
00:00:06]} Bb4 {[%emt 00:00:02]} 26. Rd1 {[%emt 00:00:04]} Nc3 {[%emt
00:00:02]} 27. Bd2 {[%emt 00:00:07]} Nxd1 {[%emt 00:00:04]} 28. Bxb4 {[%emt
00:00:01]} Rc1 {[%emt 00:00:01]} 0-1

[Event "MČR v bleskovém šachu družstev 2019"]
[Site "Teplice, Czech Republic"]
[Date "2019.09.14"]
[Round "6.16"]
[White "Postupa, Pavel"]
[Black "Prudek, Jiri"]
[Result "1-0"]
[TimeControl "3 mim. + 2 s"]
[WhiteFideId "326410"]
[BlackFideId "327310"]
[WhiteElo "2184"]
[BlackElo "1962"]

1. e4 {[%clk 00:03:02]} {[%emt 00:00:01]} c5 {[%clk 00:03:03]} 2. Nf3 {[%clk
00:03:03]} {[%emt 00:00:02]} e6 {[%clk 00:03:05]} 3. g3 {[%clk 00:03:02]}
{[%emt 00:00:03]} Qc7 {[%clk 00:03:02]} {[%emt 00:00:04]} 4. Bg2 {[%clk
00:03:04]} {[%emt 00:00:01]} Nc6 {[%clk 00:02:53]} {[%emt 00:00:11]} 5. O-O
{[%clk 00:03:04]} {[%emt 00:00:02]} d6 {[%clk 00:02:53]} {[%emt 00:00:02]} 6.
Qe2 {[%clk 00:03:04]} {[%emt 00:00:01]} Nf6 {[%clk 00:02:53]} {[%emt 00:00:02]}
7. Rd1 {[%clk 00:03:05]} {[%emt 00:00:01]} Be7 {[%clk 00:02:39]} {[%emt
00:00:16]} 8. d4 {[%clk 00:03:04]} {[%emt 00:00:02]} cxd4 {[%clk 00:02:40]}
{[%emt 00:00:01]} 9. Nxd4 {[%clk 00:03:05]} {[%emt 00:00:01]} Nxd4 {[%clk
00:02:40]} {[%emt 00:00:02]} 10. Rxd4 {[%clk 00:03:06]} {[%emt 00:00:01]} Bd7
{[%clk 00:02:36]} {[%emt 00:00:06]} 11. Nc3 {[%clk 00:03:00]} {[%emt 00:00:08]}
Bc6 {[%clk 00:02:34]} {[%emt 00:00:04]} 12. Bg5 {[%clk 00:02:41]} {[%emt
00:00:22]} h6 {[%clk 00:02:32]} {[%emt 00:00:04]} 13. Be3 {[%clk 00:02:32]}
{[%emt 00:00:10]} a6 {[%clk 00:02:24]} {[%emt 00:00:10]} 14. Rad1 {[%clk
00:02:32]} {[%emt 00:00:02]} Rc8 {[%clk 00:02:16]} {[%emt 00:00:11]} 15. h3
{[%clk 00:02:33]} {[%emt 00:00:02]} g5 {[%clk 00:02:00]} {[%emt 00:00:17]} 16.
a3 {[%clk 00:02:27]} {[%emt 00:00:08]} Nd7 {[%clk 00:01:59]} {[%emt 00:00:02]}
17. R4d2 {[%clk 00:02:24]} {[%emt 00:00:05]} Ne5 {[%clk 00:01:47]} {[%emt
00:00:15]} 18. Bd4 {[%clk 00:02:24]} {[%emt 00:00:02]} Rg8 {[%clk 00:01:42]}
{[%emt 00:00:08]} 19. f4 {[%clk 00:02:02]} {[%emt 00:00:24]} gxf4 {[%clk
00:01:41]} {[%emt 00:00:03]} 20. gxf4 {[%clk 00:02:03]} {[%emt 00:00:01]} Ng6
{[%clk 00:01:27]} {[%emt 00:00:16]} 21. Qg4 {[%emt 00:00:19]} Kf8 {[%clk
00:00:58]} {[%emt 00:00:29]} 22. Qh5 {[%clk 00:01:41]} {[%emt 00:00:10]} Nh4
{[%clk 00:00:46]} {[%emt 00:00:14]} 23. Qxh6+ {[%clk 00:01:40]} {[%emt
00:00:03]} Ke8 {[%clk 00:00:47]} 24. Kh2 {[%clk 00:01:31]} {[%emt 00:00:11]}
Nxg2 {[%clk 00:00:47]} {[%emt 00:00:02]} 25. Rxg2 {[%clk 00:01:32]} {[%emt
00:00:01]} Rxg2+ {[%emt 00:00:03]} 26. Kxg2 {[%clk 00:01:34]} Kd7 {[%clk
00:00:40]} {[%emt 00:00:09]} 27. Qh7 {[%clk 00:01:25]} {[%emt 00:00:11]} Rf8
{[%clk 00:00:38]} {[%emt 00:00:04]} 28. Bg7 {[%clk 00:01:22]} {[%emt 00:00:05]}
Re8 {[%clk 00:00:36]} {[%emt 00:00:04]} 29. Kh2 {[%clk 00:01:19]} {[%emt
00:00:05]} Kc8 {[%clk 00:00:31]} {[%emt 00:00:06]} 30. Bd4 {[%clk 00:01:12]}
{[%emt 00:00:09]} Rf8 {[%clk 00:00:26]} {[%emt 00:00:07]} 31. Qg7 {[%clk
00:01:07]} {[%emt 00:00:08]} Qd8 {[%clk 00:00:24]} {[%emt 00:00:04]} 32. e5
{[%clk 00:01:04]} {[%emt 00:00:04]} d5 {[%clk 00:00:25]} {[%emt 00:00:01]} 33.
Rg1 {[%clk 00:00:53]} {[%emt 00:00:14]} Qe8 {[%clk 00:00:26]} {[%emt 00:00:01]}
34. Ne2 {[%clk 00:00:42]} {[%emt 00:00:12]} Kb8 {[%clk 00:00:27]} 35. Ng3
{[%clk 00:00:43]} {[%emt 00:00:01]} Rg8 {[%clk 00:00:27]} {[%emt 00:00:02]} 36.
Qh7 {[%clk 00:00:42]} {[%emt 00:00:03]} Rh8 {[%clk 00:00:27]} {[%emt 00:00:02]}
37. Qd3 {[%clk 00:00:43]} {[%emt 00:00:02]} Rh4 {[%clk 00:00:23]} {[%emt
00:00:06]} 38. Ne2 {[%clk 00:00:37]} {[%emt 00:00:08]} Qh8 {[%clk 00:00:21]}
{[%emt 00:00:04]} 39. Rg3 {[%clk 00:00:35]} {[%emt 00:00:04]} Bb5 {[%clk
00:00:20]} {[%emt 00:00:04]} 40. Qe3 {[%clk 00:00:32]} {[%emt 00:00:05]} Bxe2
{[%clk 00:00:18]} {[%emt 00:00:04]} 41. Qxe2 {[%clk 00:00:33]} {[%emt
00:00:01]} Rxf4 {[%clk 00:00:18]} {[%emt 00:00:01]} 42. Qe3 {[%clk 00:00:33]}
{[%emt 00:00:03]} Qh4 {[%clk 00:00:15]} {[%emt 00:00:05]} 43. Rg8+ {[%clk
00:00:30]} {[%emt 00:00:04]} Kc7 {[%clk 00:00:09]} {[%emt 00:00:08]} 44. Qc3+
{[%clk 00:00:32]} Kd7 {[%clk 00:00:04]} {[%emt 00:00:07]} 45. Qc8# 1-0

[Event "MČR v bleskovém šachu družstev 2019"]
[Site "Teplice, Czech Republic"]
[Date "2019.09.14"]
[Round "6.17"]
[White "Babicka, Michal"]
[Black "Bernasek, Jan"]
[Result "0-1"]
[TimeControl "3 mim. + 2 s"]
[BlackTitle "GM"]
[BlackFideId "311995"]
[WhiteElo "2076"]
[BlackElo "2526"]

1. e4 {[%clk 00:03:02]} {[%emt 00:00:02]} c5 {[%clk 00:03:03]} {[%emt
00:00:01]} 2. Nf3 {[%clk 00:03:03]} e6 {[%clk 00:03:05]} 3. Nc3 {[%clk
00:03:03]} {[%emt 00:00:02]} a6 {[%clk 00:03:05]} {[%emt 00:00:01]} 4. Be2
{[%clk 00:03:04]} b5 {[%clk 00:03:05]} {[%emt 00:00:02]} 5. a3 {[%clk
00:03:05]} {[%emt 00:00:01]} Bb7 {[%clk 00:03:06]} 6. d3 {[%clk 00:02:59]}
{[%emt 00:00:09]} d5 {[%clk 00:03:05]} {[%emt 00:00:02]} 7. exd5 {[%clk
00:02:53]} {[%emt 00:00:08]} exd5 {[%clk 00:03:06]} 8. O-O {[%clk 00:02:54]}
{[%emt 00:00:02]} Nf6 {[%clk 00:03:07]} {[%emt 00:00:01]} 9. Bg5 {[%clk
00:02:53]} {[%emt 00:00:02]} Be7 {[%clk 00:03:07]} {[%emt 00:00:02]} 10. d4
{[%clk 00:02:54]} {[%emt 00:00:02]} c4 {[%clk 00:03:06]} {[%emt 00:00:03]} 11.
Ne5 {[%clk 00:02:51]} {[%emt 00:00:05]} O-O {[%clk 00:03:05]} {[%emt 00:00:02]}
12. Bf3 {[%clk 00:02:47]} {[%emt 00:00:06]} Nbd7 {[%clk 00:03:02]} {[%emt
00:00:05]} 13. Nxd7 {[%clk 00:02:43]} {[%emt 00:00:06]} Qxd7 {[%clk 00:03:03]}
{[%emt 00:00:02]} 14. Ne2 {[%clk 00:02:42]} {[%emt 00:00:03]} h6 {[%clk
00:03:00]} {[%emt 00:00:04]} 15. Bh4 {[%clk 00:02:39]} {[%emt 00:00:05]} g5
{[%clk 00:02:58]} {[%emt 00:00:04]} 16. Bg3 {[%clk 00:02:36]} {[%emt 00:00:06]}
g4 {[%clk 00:02:59]} {[%emt 00:00:01]} 17. Nf4 {[%clk 00:02:33]} {[%emt
00:00:04]} gxf3 {[%clk 00:02:59]} {[%emt 00:00:01]} 18. Qxf3 {[%clk 00:02:35]}
Qf5 {[%clk 00:02:54]} {[%emt 00:00:08]} 19. Rae1 {[%clk 00:02:22]} {[%emt
00:00:16]} Ne4 {[%clk 00:02:54]} {[%emt 00:00:01]} 20. c3 {[%clk 00:02:13]}
{[%emt 00:00:11]} Bg5 {[%clk 00:02:55]} {[%emt 00:00:01]} 21. h4 {[%clk
00:01:59]} {[%emt 00:00:16]} Nd2 {[%clk 00:02:44]} {[%emt 00:00:13]} 22. Qh5
{[%clk 00:01:55]} {[%emt 00:00:06]} Nxf1 {[%clk 00:02:33]} {[%emt 00:00:13]} 23.
Rxf1 {[%clk 00:01:42]} {[%emt 00:00:15]} Rae8 {[%clk 00:02:26]} {[%emt
00:00:09]} 24. Nh3 {[%clk 00:01:43]} {[%emt 00:00:02]} f6 {[%clk 00:02:23]}
{[%emt 00:00:05]} 25. hxg5 {[%clk 00:01:41]} {[%emt 00:00:04]} hxg5 {[%clk
00:02:23]} {[%emt 00:00:01]} 26. Bd6 {[%clk 00:01:36]} {[%emt 00:00:08]} Rf7
{[%clk 00:02:22]} {[%emt 00:00:03]} 27. f4 {[%clk 00:01:28]} {[%emt 00:00:09]}
Qh7 {[%clk 00:02:18]} {[%emt 00:00:06]} 28. Qg4 {[%clk 00:01:26]} {[%emt
00:00:04]} Bc8 {[%clk 00:02:17]} {[%emt 00:00:03]} 29. f5 {[%clk 00:01:26]}
{[%emt 00:00:03]} Re4 {[%clk 00:02:12]} {[%emt 00:00:07]} 30. Qg3 {[%clk
00:01:09]} {[%emt 00:00:19]} Bxf5 {[%clk 00:02:03]} {[%emt 00:00:10]} 31. Nf4
{[%clk 00:01:03]} {[%emt 00:00:09]} Be6 {[%clk 00:01:38]} {[%emt 00:00:27]} 32.
Bc5 {[%clk 00:00:59]} {[%emt 00:00:05]} Qh4 {[%clk 00:01:25]} {[%emt 00:00:15]}
33. Qxh4 {[%clk 00:00:36]} {[%emt 00:00:25]} gxh4 {[%clk 00:01:26]} {[%emt
00:00:01]} 34. Nh5 {[%clk 00:00:10]} {[%emt 00:00:28]} f5 {[%clk 00:01:27]} 35.
Nf4 {[%clk 00:00:11]} Rg7 {[%clk 00:01:21]} {[%emt 00:00:08]} 36. Nh5 {[%clk
00:00:12]} {[%emt 00:00:03]} Rg6 {[%clk 00:01:18]} {[%emt 00:00:05]} 37. Nf4
{[%clk 00:00:11]} {[%emt 00:00:02]} Rg4 {[%clk 00:01:17]} {[%emt 00:00:03]} 38.
Nh5 {[%clk 00:00:12]} {[%emt 00:00:01]} Kf7 {[%clk 00:01:17]} {[%emt 00:00:02]}
39. Kh2 {[%clk 00:00:13]} {[%emt 00:00:01]} Kg6 {[%clk 00:01:17]} {[%emt
00:00:03]} 0-1

[Event "MČR v bleskovém šachu družstev 2019"]
[Site "Teplice, Czech Republic"]
[Date "2019.09.14"]
[Round "6.18"]
[White "Cernousek, Lukas"]
[Black "Mach, Petr"]
[Result "1-0"]
[TimeControl "3 mim. + 2 s"]
[WhiteTitle "IM"]
[WhiteFideId "311707"]
[WhiteElo "2473"]
[BlackElo "1961"]

1. Nf3 {[%clk 00:03:03]} c5 {[%clk 00:02:59]} {[%emt 00:00:05]} 2. e3 {[%clk
00:03:04]} {[%emt 00:00:02]} Nc6 {[%clk 00:02:52]} {[%emt 00:00:09]} 3. d4
{[%clk 00:02:44]} {[%emt 00:00:21]} cxd4 {[%clk 00:02:52]} {[%emt 00:00:02]} 4.
exd4 {[%clk 00:02:45]} {[%emt 00:00:02]} d5 {[%clk 00:02:53]} {[%emt 00:00:01]}
5. c4 {[%clk 00:02:32]} {[%emt 00:00:15]} Nf6 {[%clk 00:02:46]} {[%emt
00:00:09]} 6. Nc3 {[%clk 00:02:32]} {[%emt 00:00:02]} g6 {[%clk 00:02:46]}
{[%emt 00:00:02]} 7. cxd5 {[%clk 00:02:26]} {[%emt 00:00:07]} Nxd5 {[%clk
00:02:45]} {[%emt 00:00:03]} 8. Qb3 {[%clk 00:02:16]} {[%emt 00:00:12]} Nxc3
{[%clk 00:02:28]} {[%emt 00:00:20]} 9. Bc4 {[%clk 00:02:17]} {[%emt 00:00:01]}
e6 {[%clk 00:01:54]} {[%emt 00:00:36]} 10. bxc3 {[%clk 00:02:17]} {[%emt
00:00:02]} Bd7 {[%clk 00:01:55]} {[%emt 00:00:01]} 11. Bd3 {[%clk 00:01:43]}
{[%emt 00:00:35]} Qc7 {[%clk 00:01:42]} {[%emt 00:00:15]} 12. O-O {[%clk
00:01:36]} {[%emt 00:00:09]} Bd6 {[%clk 00:01:43]} {[%emt 00:00:01]} 13. Bh6
{[%clk 00:01:33]} {[%emt 00:00:06]} Rc8 {[%clk 00:01:21]} {[%emt 00:00:23]} 14.
Rac1 {[%clk 00:01:17]} {[%emt 00:00:19]} Na5 {[%clk 00:01:08]} {[%emt
00:00:15]} 15. Qb2 {[%clk 00:01:12]} {[%emt 00:00:07]} Bf4 {[%clk 00:00:50]}
{[%emt 00:00:20]} 16. Bxf4 {[%clk 00:01:04]} {[%emt 00:00:10]} Qxf4 {[%clk
00:00:51]} 17. Qa3 {[%clk 00:00:49]} {[%emt 00:00:17]} Nc6 {[%clk 00:00:38]}
{[%emt 00:00:15]} 18. Rfe1 {[%clk 00:00:43]} {[%emt 00:00:08]} Ne7 {[%clk
00:00:25]} {[%emt 00:00:15]} 19. Ne5 {[%clk 00:00:39]} {[%emt 00:00:06]} Bc6
{[%clk 00:00:21]} {[%emt 00:00:05]} 20. g3 {[%clk 00:00:19]} {[%emt 00:00:23]}
Qf6 {[%clk 00:00:14]} {[%emt 00:00:09]} 21. Nxc6 {[%clk 00:00:18]} {[%emt
00:00:03]} bxc6 {[%clk 00:00:06]} {[%emt 00:00:10]} 22. Qxa7 {[%clk 00:00:17]}
{[%emt 00:00:03]} O-O {[%clk 00:00:06]} {[%emt 00:00:02]} 23. Qc5 {[%clk
00:00:18]} Nd5 {[%clk 00:00:07]} {[%emt 00:00:02]} 24. c4 {[%clk 00:00:17]}
{[%emt 00:00:03]} Ne7 {[%clk 00:00:06]} {[%emt 00:00:02]} 25. Qe5 {[%clk
00:00:16]} {[%emt 00:00:03]} Qxe5 {[%clk 00:00:06]} {[%emt 00:00:02]} 26. dxe5
{[%clk 00:00:17]} {[%emt 00:00:02]} Rfd8 {[%clk 00:00:06]} 27. Red1 {[%clk
00:00:17]} {[%emt 00:00:03]} Ra8 {[%clk 00:00:06]} {[%emt 00:00:02]} 28. Bb1
{[%clk 00:00:17]} {[%emt 00:00:02]} Nf5 {[%clk 00:00:05]} {[%emt 00:00:03]} 29.
Kg2 {[%clk 00:00:07]} {[%emt 00:00:11]} Nd4 {[%clk 00:00:05]} {[%emt 00:00:03]}
30. Rc3 {[%clk 00:00:07]} {[%emt 00:00:01]} c5 {[%clk 00:00:05]} {[%emt
00:00:02]} 31. Rd2 {[%clk 00:00:05]} {[%emt 00:00:05]} Rdb8 {[%clk 00:00:04]}
{[%emt 00:00:02]} 32. Be4 {[%clk 00:00:04]} {[%emt 00:00:03]} Ra5 {[%clk
00:00:05]} 33. f4 {[%clk 00:00:05]} {[%emt 00:00:02]} Kf8 {[%clk 00:00:06]} 34.
h4 {[%clk 00:00:06]} Ke7 {[%clk 00:00:05]} {[%emt 00:00:02]} 35. h5 {[%emt
00:00:02]} Ra7 {[%clk 00:00:03]} {[%emt 00:00:03]} 36. h6 {[%clk 00:00:07]}
{[%emt 00:00:02]} Ra6 {[%clk 00:00:04]} {[%emt 00:00:02]} 37. a3 {[%clk
00:00:07]} {[%emt 00:00:02]} Ra5 {[%clk 00:00:04]} {[%emt 00:00:01]} 38. Kf2
{[%clk 00:00:09]} {[%emt 00:00:01]} Rb6 {[%clk 00:00:05]} 39. Ke3 {[%clk
00:00:10]} {[%emt 00:00:01]} Rba6 {[%clk 00:00:06]} 40. Ra2 {[%clk 00:00:11]}
{[%emt 00:00:02]} Nc6 {[%clk 00:00:06]} {[%emt 00:00:02]} 41. Bxc6 {[%clk
00:00:09]} {[%emt 00:00:04]} Rxc6 {[%clk 00:00:07]} 42. Rb3 {[%clk 00:00:07]}
{[%emt 00:00:04]} Rc7 {[%clk 00:00:07]} {[%emt 00:00:02]} 43. Rb5 {[%clk
00:00:07]} {[%emt 00:00:02]} Ra4 {[%clk 00:00:08]} {[%emt 00:00:02]} 44. Kd3
{[%clk 00:00:08]} {[%emt 00:00:02]} Kd7 {[%clk 00:00:08]} 45. Kc3 {[%clk
00:00:08]} {[%emt 00:00:02]} Kc6 {[%clk 00:00:09]} {[%emt 00:00:01]} 46. Kb3
{[%clk 00:00:08]} {[%emt 00:00:01]} Ra8 {[%clk 00:00:10]} 47. Rd2 {[%clk
00:00:09]} {[%emt 00:00:01]} Rca7 {[%clk 00:00:09]} {[%emt 00:00:03]} 48. Rd6+
{[%clk 00:00:09]} {[%emt 00:00:02]} Kc7 {[%clk 00:00:09]} {[%emt 00:00:02]} 49.
Rxc5+ {[%clk 00:00:11]} {[%emt 00:00:01]} Kb7 {[%clk 00:00:09]} {[%emt
00:00:01]} 50. Rb5+ {[%clk 00:00:10]} {[%emt 00:00:03]} Kc7 {[%clk 00:00:10]}
{[%emt 00:00:01]} 51. Rc5+ {[%clk 00:00:11]} Kb7 {[%clk 00:00:12]} {[%emt
00:00:02]} 52. Rd7+ {[%clk 00:00:12]} {[%emt 00:00:01]} Kb6 {[%clk 00:00:13]}
{[%emt 00:00:01]} 53. Rb5+ {[%clk 00:00:12]} {[%emt 00:00:02]} Kc6 {[%clk
00:00:14]} 54. Rxa7 {[%emt 00:00:02]} Rxa7 55. Kb4 {[%clk 00:00:11]} {[%emt
00:00:02]} Rd7 {[%clk 00:00:17]} {[%emt 00:00:02]} 56. Rc5+ {[%clk 00:00:08]}
{[%emt 00:00:05]} Kb6 {[%clk 00:00:18]} 57. Rb5+ {[%clk 00:00:09]} {[%emt
00:00:02]} Kc6 {[%clk 00:00:19]} 58. Ra5 {[%clk 00:00:08]} {[%emt 00:00:03]}
Kb6 {[%clk 00:00:18]} {[%emt 00:00:03]} 59. c5+ {[%clk 00:00:08]} {[%emt
00:00:02]} Kc6 {[%clk 00:00:20]} 60. Ra6+ {[%clk 00:00:09]} {[%emt 00:00:01]}
Kb7 {[%clk 00:00:21]} 61. c6+ {[%clk 00:00:09]} {[%emt 00:00:02]} Kxa6 {[%clk
00:00:21]} {[%emt 00:00:02]} 62. cxd7 {[%clk 00:00:10]} {[%emt 00:00:01]} 1-0